{"text_format":"2","workbook":"xlsx","n_sheets":2,"sheets":["Magyar BA","x"],"not_rendered":{"charts":0,"images":0,"macros":0,"external_links":0,"defined_names":41,"comments":0,"pivot_tables":0},"unopened":[],"bounds":{"document_bytes":16777216,"sheet_cells":100000,"run_cost":"one","rows_first":2000,"rows_last":500,"rows_between":2000,"halvings":0,"cell_chars":16384,"cell_head_chars":4096},"cells_cut":0,"cells_raw":0,"read":"whole","date_system":"1900"}

{"sheet":"Magyar BA","index":0,"n_rows":127,"n_cols":20,"rows_kept":127,"cut":false,"hidden":false,"merged":[[116,1,116,2],[116,3,116,9],[117,1,117,2],[117,3,117,9],[118,0,118,9],[108,1,108,2],[108,3,108,9],[112,0,112,9],[113,1,113,2],[113,3,113,9],[102,1,102,2],[102,3,102,9],[81,1,81,2],[81,3,81,9],[86,1,86,2],[86,3,86,9],[89,1,89,2],[89,3,89,9],[83,1,83,2],[83,3,83,9],[95,1,95,2],[95,3,95,9],[64,1,64,2],[64,3,64,9],[98,1,98,2],[98,3,98,9],[101,0,101,9],[70,1,70,2],[70,3,70,9],[74,1,74,2],[74,3,74,9],[79,1,79,2],[79,3,79,9],[40,3,40,9],[43,1,43,2],[43,3,43,9],[45,1,45,2],[45,3,45,9],[16,1,16,2],[16,3,16,9],[3,1,3,2],[3,3,3,9],[33,1,33,2],[33,3,33,9],[12,1,12,2],[12,3,12,9],[8,1,8,2],[8,3,8,9],[14,1,14,2],[14,3,14,9],[18,1,18,2],[18,3,18,9],[20,1,20,2],[20,3,20,9],[2,0,2,9],[5,0,5,9],[6,1,6,2],[6,3,6,9],[10,1,10,2],[10,3,10,9],[22,0,22,9],[23,1,23,2],[23,3,23,9],[47,1,47,2],[47,3,47,9],[35,1,35,2],[35,3,35,9],[38,1,38,2],[38,3,38,9],[26,1,26,2],[26,3,26,9],[28,1,28,2],[28,3,28,9],[31,1,31,2],[31,3,31,9],[40,1,40,2],[60,3,60,9],[49,1,49,2],[49,3,49,9],[52,1,52,2],[52,3,52,9],[54,1,54,2],[54,3,54,9],[56,1,56,2],[56,3,56,9],[58,1,58,2],[58,3,58,9],[60,1,60,2]]}
["Magyar BA_AN 2017 (MAG-B-AN 2017, BSZKMAG_N_2017 magyar [alap])"]
["MK","TT/KPR","Tantárgyelem - Topic in the subject",0,1,2,3,4,5,6,"részössz.","össz.","oktató","tantárgyfelelős","beosztás","hirdető tanszék/intézet","tantárgy célja (500-1000 leütés)","tantárgy tematikája (500-1000 leütés)","kötelező szakirodalom (3-5 db)","ajánlott szakirodalom (3-5 db)"]
["SZD Szakdolgozat",{"$nulls":10},{"$f":"SUM(K4)","v":0}]
[null,"MAGSZD2 Szakdolgozat magyar alapszakhoz",{"$nulls":8},{"$f":"SUM(D5:J5)","v":0}]
[null,null,"MAGSZD21 Szakdolgozat magyar alapszakhoz, Gyakorlat tavaszi félévben, 2 óra, Gyakorlati jegy ++",{"$nulls":12},"Magyar Nyelvi és Irodalmi Intézet"]
["MK-A Alapozó ismeretek; Teljesítendő: min. 19k ",{"$nulls":10},{"$f":"SUM(K7:K22)","v":19}]
[null,"BAFIL Filozófiatörténet; teljesítendő min. 2k",{"$nulls":8},{"$f":"SUM(D8:J8)","v":2}]
[null,null,"BAFIL1 Filozófiatörténet, Előadás őszi félévben, 2 óra, Kollokvium ++",2]
[null,"MAGNA1 Bevezetés a nyelvtudományba; teljesítendő min. 3k ",{"$nulls":8},{"$f":"SUM(D10:J10)","v":3}]
[null,null,"MAGNA1 Bevezetés a nyelvtudományba, Előadás őszi félévben, 2 óra, Kollokvium",null,3,{"$nulls":10},"Általános Nyelvészeti Tanszék"]
[null,"BATÁRS Társadalomismeret; teljesítendő min. 2k",{"$nulls":8},{"$f":"SUM(D12:J12)","v":2}]
[null,null,"BATÁRS1 Társadalomismeret, Előadás őszi félévben, 2 óra, Kollokvium ++",2]
[null,"MAGNA2 Nyelvészeti filológia; teljesítendő min. 3k ",{"$nulls":8},{"$f":"SUM(D14:J14)","v":3}]
[null,null,"MAGNA2 Nyelvészeti filológia, Szeminárium őszi félévben, 2 óra, Gyakorlati jegy ++",null,3,{"$nulls":10},"Magyar Nyelvészeti Tanszék"]
[null,"BAKÖ Könyvtár- és informatikai alapismeretek; teljesítendő min. 2k",{"$nulls":8},{"$f":"SUM(D16:J16)","v":2}]
[null,null,"BAKÖ1 Könyvtár- és informatikai alapismeretek, Előadás őszi félévben, 2 óra, Kollokvium",2]
[null,"MAGNA3 Kommunikáció szóban és írásban I. – Nyelvművelés; teljesítendő min. 3k",{"$nulls":8},{"$f":"SUM(D18:J18)","v":3}]
[null,null,"MAGNA31 Kommunikáció szóban és írásban I. – Nyelvművelés, Szeminárium őszi félévben, 2 óra, Gyakorlati jegy ++",null,null,null,3,{"$nulls":8},"Magyar Nyelvészeti Tanszék"]
[null,"MAGIA01 Bevezetés az irodalomtudományba; teljesítendő min. 2k",{"$nulls":8},{"$f":"SUM(D20:J20)","v":2}]
[null,null,"MAGIA011 Bevezetés az irodalomtudományba, Előadás 2 óra, Kollokvium",null,2,{"$nulls":10},"Vizuális Kultúra és Irodalomelmélet Tanszék"]
[null,"MAGIA02 Irodalomtudományi proszeminárium; teljesítendő min. 2k",{"$nulls":8},{"$f":"SUM(D22:J22)","v":2}]
[null,null,"MAGIA021 Irodalomtudományi proszeminárium, Szeminárium 2 óra, Gyakorlati jegy",null,2,{"$nulls":10},"Magyar Irodalmi Tanszék"]
["MK-T Törzsképzés; Teljesítendő: min. 89k ",{"$nulls":10},{"$f":"SUM(K24:K101)","v":93}]
[null,"MAGNT01 Leíró hangtan; teljesítendő min. 3k",{"$nulls":8},{"$f":"SUM(D25:J26)","v":3}]
[null,null,"MAGNT011 Leíró hangtan előadás, Előadás őszi félévben, 1 óra, Kollokvium",null,2,{"$nulls":10},"Magyar Nyelvészeti Tanszék"]
[null,null,"MAGNT012 Leíró hangtani szeminárium, Szeminárium őszi félévben, 1 óra, Gyakorlati jegy ++",null,1,{"$nulls":10},"Magyar Nyelvészeti Tanszék"]
[null,"MAGNT02 A magyar nyelv finnugor rokonsága; teljesítendő min. 2k",{"$nulls":8},{"$f":"SUM(D28:J28)","v":2}]
[null,null,"MAGNT021 A magyar nyelv finnugor rokonsága, Szeminárium tavaszi félévben, 2 óra, Gyakorlati jegy ++",null,null,2,{"$nulls":9},"Finnugor Nyelvtudományi Tanszék"]
[null,"MAGNT03 Szófajtan; teljesítendő min. 5k",{"$nulls":8},{"$f":"SUM(D30:J31)","v":5}]
[null,null,"MAGNT031 Szófajtan előadás, Előadás tavaszi félévben, 1 óra, Kollokvium ++",null,null,2,{"$nulls":9},"Magyar Nyelvészeti Tanszék"]
[null,null,"MAGNT032 Szófajtani szeminárium, Szeminárium tavaszi félévben, 1 óra, Gyakorlati jegy ++",null,null,3,{"$nulls":9},"Magyar Nyelvészeti Tanszék"]
[null,"MAGNT04 Helyesírás; teljesítendő min. 2k",{"$nulls":8},{"$f":"SUM(D33:J33)","v":2}]
[null,null,"MAGNT041 Helyesírás, Szeminárium tavaszi félévben, 1 óra, Gyakorlati jegy ++",null,null,2,{"$nulls":9},"Magyar Nyelvészeti Tanszék"]
[null,"MAGNT05 Jelentéstan; teljesítendő min. 2k",{"$nulls":8},{"$f":"SUM(D35:J35)","v":2}]
[null,null,"MAGNT051 Jelentéstan előadás, Előadás tavaszi félévben, 1 óra, Kollokvium ++",null,null,2,{"$nulls":9},"Magyar Nyelvészeti Tanszék"]
[null,"MAGNT06 Szószerkezettan és egyszerű mondat; teljesítendő min. 3k ",{"$nulls":8},{"$f":"SUM(D37:J38)","v":3}]
[null,null,"MAGNT061 Szószerkezettan és egyszerű mondat előadás, Előadás őszi félévben, 1 óra, Kollokvium ++",null,null,null,1,{"$nulls":8},"Magyar Nyelvészeti Tanszék"]
[null,null,"MAGNT0621 Szószerkezettan és egyszerű mondat szeminárium, Szeminárium őszi félévben, 2 óra, Gyakorlati jegy ++",null,null,null,2,{"$nulls":8},"Magyar Nyelvészeti Tanszék"]
[null,"MAGNT07 Kommunikáció szóban és írásban II.; teljesítendő min. 2k ",{"$nulls":8},{"$f":"SUM(D40:J40)","v":2}]
[null,null,"MAGNT07 Kommunikáció szóban és írásban II., Szeminárium tavaszi félévben, 2 óra, Gyakorlati jegy ++",{"$nulls":4},2,{"$nulls":7},"Magyar Nyelvészeti Tanszék"]
[null,"MAGNT08 Mondattan – összetett mondat; teljesítendő min. 4k",{"$nulls":8},{"$f":"SUM(D42:J43)","v":4}]
[null,null,"MAGNT081 Mondattan – összetett mondat előadás, Előadás tavaszi félévben, 1 óra, Minősítés ++",{"$nulls":4},2,{"$nulls":7},"Magyar Nyelvészeti Tanszék"]
[null,null,"MAGNT082 Mondattan – összetett mondatszeminárium, Szeminárium tavaszi félévben, 1 óra, Gyakorlati jegy ++",{"$nulls":4},2,{"$nulls":7},"Magyar Nyelvészeti Tanszék"]
[null,"MAGNT09 Szövegtan; teljesítendő min. 2k",{"$nulls":8},{"$f":"SUM(D45:J45)","v":2}]
[null,null,"MAGNT091 Szövegtan előadás, Előadás tavaszi félévben, 2 óra, Kollokvium ++",{"$nulls":4},2,{"$nulls":7},"Magyar Nyelvészeti Tanszék"]
[null,"MAGNT10 Uralisztika; teljesítendő min. 2k",{"$nulls":8},{"$f":"SUM(D47:J47)","v":2}]
[null,null,"MAGNT101 Uralisztika előadás, Előadás őszi félévben, 2 óra, Kollokvium ++",{"$nulls":5},2,{"$nulls":6},"Finnugor Nyelvtudományi Tanszék"]
[null,"MAGNT11 Nyelvtörténet I.; teljesítendő min. 2k",{"$nulls":8},{"$f":"SUM(D49:J49)","v":2}]
[null,null,"MAGNT111 Nyelvtörténet I., Előadás őszi félévben, 2 óra, koll ++",{"$nulls":5},2,{"$nulls":6},"Magyar Nyelvészeti Tanszék"]
[null,"MAGNT12 Stilisztika; teljesítendő min. 3k",{"$nulls":8},{"$f":"SUM(D51:J52)","v":3}]
[null,null,"MAGNT121 Stilisztika előadás, Előadás őszi félévben, 1 óra, Kollokvium ++",{"$nulls":5},1,{"$nulls":6},"Magyar Nyelvészeti Tanszék"]
[null,null,"MAGNT122 Stilisztika szeminárium, Szeminárium őszi félévben, 1 óra, Gyakorlati jegy ++",{"$nulls":5},2,{"$nulls":6},"Magyar Nyelvészeti Tanszék"]
[null,"MAGNT13 Szociolingvisztika – Nyelv és társadalom; teljesítendő min. 2k",{"$nulls":8},{"$f":"SUM(D54:J54)","v":2}]
[null,null,"MAGNT131 Szociolingvisztika – Nyelv és társadalom előadás, Előadás őszi félévben, 2 óra, Kollokvium ++",{"$nulls":5},2,{"$nulls":6},"Magyar Nyelvészeti Tanszék"]
[null,"MAGNT14 Nyelvtörténet II. – A magyar nyelv történeti fejlődésének vázlata; teljesítendő min. 3k",{"$nulls":8},{"$f":"SUM(D56:J56)","v":3}]
[null,null,"MAGNT141 Nyelvtörténet II. – A magyar nyelv történeti fejlődésének vázlata előadás, Előadás tavaszi félévben, 2 óra, Kollokvium ++",{"$nulls":6},3,{"$nulls":5},"Magyar Nyelvészeti Tanszék"]
[null,"MAGNT15 Nyelvtörténet III.; teljesítendő min. 2k",{"$nulls":8},{"$f":"SUM(D58:J58)","v":2}]
[null,null,"MAGNT151 Nyelvtörténet III. – nyelvtörténeti szeminárium, Szeminárium tavaszi félévben, 1 óra, Gyakorlati jegy ++",{"$nulls":6},2,{"$nulls":5},"Magyar Nyelvészeti Tanszék"]
[null,"MAGNT16 Nyelvjárástan; teljesítendő min. 1k",{"$nulls":8},{"$f":"SUM(D60:J60)","v":1}]
[null,null,"MAGNT161 Nyelvjárástan, Előadás tavaszi félévben, 1 óra, koll ++",{"$nulls":6},1,{"$nulls":5},"Magyar Nyelvészeti Tanszék"]
[null,"MAGIT01 Régi magyar irodalom; teljesítendő min. 6k",{"$nulls":8},{"$f":"SUM(D62:J64)","v":6}]
[null,null,"MAGIT011 Régi magyar irodalom előadás I., Előadás 1 óra, Kollokvium",null,2,{"$nulls":10},"Magyar Irodalmi Tanszék"]
[null,null,"MAGIT012 Régi magyar irodalom előadás 2., Előadás 1 óra, Kollokvium ; @@MAGIA021",null,null,2,{"$nulls":9},"Magyar Irodalmi Tanszék"]
[null,null,"MAGIT013 Régi magyar irodalom szeminárium, Szeminárium 2 óra, Gyakorlati jegy ; @@MAGIA021",null,null,2,{"$nulls":9},"Magyar Irodalmi Tanszék"]
[null,"TCS-MAGIT02 Világirodalom; teljesítendő min. 9k",{"$nulls":8},{"$f":"SUM(D66:J70)","v":9}]
[null,null,"MAGIT0211 Világirodalom előadás 1, Előadás 1 óra, Kollokvium",null,1,{"$nulls":10},"Összehasonlító Irodalomtudományi Tanszék"]
[null,null,"MAGIT0221 Világirodalom előadás 2, Előadás 2 óra, Kollokvium",null,null,2,{"$nulls":9},"Összehasonlító Irodalomtudományi Tanszék"]
[null,null,"MAGIT0231 Világirodalom előadás 3, Előadás 2 óra, Kollokvium",{"$nulls":4},2,{"$nulls":7},"Összehasonlító Irodalomtudományi Tanszék"]
[null,null,"MAGIT0241 Világirodalom előadás 4, Előadás 2 óra, Kollokvium",{"$nulls":6},2,{"$nulls":5},"Összehasonlító Irodalomtudományi Tanszék"]
[null,null,"MAGIT0251 Világirodalom szeminárium, Szeminárium 2 óra, Gyakorlati jegy",null,2,{"$nulls":10},"Összehasonlító Irodalomtudományi Tanszék"]
[null,"TCS-MAGIT03 Líra, dráma, epika; teljesítendő min. 6k",{"$nulls":8},{"$f":"SUM(D72:J74)","v":6}]
[null,null,"MAGIT0311 Líra, Szeminárium 2 óra, Gyakorlati jegy",null,2,{"$nulls":10},"Magyar Irodalmi Tanszék"]
[null,null,"MAGIT0321 Dráma, Szeminárium 2 óra, Gyakorlati jegy",null,null,2,{"$nulls":9},"Összehasonlító Irodalomtudományi Tanszék"]
[null,null,"MAGIT0331 Epika, Szeminárium 2 óra, Gyakorlati jegy",null,null,2,{"$nulls":9},"Vizuális Kultúra és Irodalomelmélet Tanszék"]
[null,"MAGIT04 Klasszikus magyar irodalom; teljesítendő min. 8k",{"$nulls":8},{"$f":"SUM(D76:J79)","v":8}]
[null,null,"MAGIT041 Klasszikus magyar irodalom előadás I., Előadás 1 óra, Kollokvium",null,null,null,2,{"$nulls":8},"Magyar Irodalmi Tanszék"]
[null,null,"MAGIT042 Klasszikus magyar irodalom előadás II., Előadás 1 óra, Kollokvium",{"$nulls":4},2,{"$nulls":7},"Magyar Irodalmi Tanszék"]
[null,null,"MAGIT043 Klasszikus magyar irodalom előadás III., Előadás 1 óra, Kollokvium",{"$nulls":4},2,{"$nulls":7},"Magyar Irodalmi Tanszék"]
[null,null,"MAGIT044 Klasszikus magyar irodalom szeminárium, Szeminárium 2 óra, Gyakorlati jegy",null,null,null,2,{"$nulls":8},"Magyar Irodalmi Tanszék"]
[null,"MAGIT05 Irodalomelmélet szeminárium; teljesítendő min. 2k",{"$nulls":8},{"$f":"SUM(D81:J81)","v":2}]
[null,null,"MAGIT051 Irodalomelmélet szeminárium, Szeminárium 2 óra, Gyakorlati jegy ; @@MAGIT061",null,2,{"$nulls":10},"Vizuális Kultúra és Irodalomelmélet Tanszék"]
[null,"MAGIT06 Irodalomelmélet előadás; teljesítendő min. 2k ",{"$nulls":8},{"$f":"SUM(D83:J83)","v":2}]
[null,null,"MAGIT061 Irodalomelmélet előadás, Előadás tavaszi félévben, 2 óra, Kollokvium",{"$nulls":4},2,{"$nulls":7},"Vizuális Kultúra és Irodalomelmélet Tanszék"]
[null,"MAGIT07 Modern magyar irodalom előadások; teljesítendő min. 4k",{"$nulls":8},{"$f":"SUM(D85:J86)","v":4}]
[null,null,"MAGIT071 Modern magyar irodalom előadás I., Előadás 1 óra, Kollokvium",{"$nulls":5},2,{"$nulls":6},"Magyar Irodalmi Tanszék"]
[null,null,"MAGIT072 Modern magyar irodalom előadás II., Előadás 1 óra, Kollokvium ; @@MAGIT071",{"$nulls":6},2,{"$nulls":5},"Magyar Irodalmi Tanszék"]
[null,"MAGIT08 Modern magyar irodalom szemináriumok; teljesítendő min. 4k",{"$nulls":8},{"$f":"SUM(D88:J89)","v":4}]
[null,null,"MAGIT081 Modern magyar irodalom szeminárium I., Szeminárium 2 óra, Gyakorlati jegy",{"$nulls":5},2,{"$nulls":6},"Magyar Irodalmi Tanszék"]
[null,null,"MAGIT082 Modern magyar irodalom szeminárium II., Szeminárium 2 óra, Gyakorlati jegy",{"$nulls":6},2,{"$nulls":5},"Magyar Irodalmi Tanszék"]
[null,"TCS-MAGIT09 Választható irodalmi szemináriumok; teljesítendő min. 6k  min. 1 féle kötelezően választható tárgyelemmel",{"$nulls":8},6]
[null,null,"MAGIT091 Választható irodalmi szeminárium régi magyar irodalomból, Szeminárium 2 óra, Gyakorlati jegy ++",2,{"$nulls":11},"Magyar Irodalmi Tanszék"]
[null,null,"MAGIT092 Választható irodalmi szemináriumok klasszikus magyar irodalomból, Szeminárium 2 óra, Gyakorlati jegy ++",2,{"$nulls":11},"Magyar Irodalmi Tanszék"]
[null,null,"MAGIT093 Választható irodalmi szemináriumok világirodalomból, Szeminárium 2 óra, Gyakorlati jegy ++",2,{"$nulls":11},"Összehasonlító Irodalomtudományi Tanszék"]
[null,null,"MAGIT094 Választható irodalmi szemináriumok modern magyar irodalomból, Szeminárium 2 óra, Gyakorlati jegy ++",2,{"$nulls":11},"Magyar Irodalmi Tanszék"]
[null,null,"MAGIT095 Választható irodalmi szemináriumok irodalomelméletből, Szeminárium 2 óra, Gyakorlati jegy ++",2,{"$nulls":11},"Vizuális Kultúra és Irodalomelmélet Tanszék"]
[null,"TCS-MAGM1 A tudományos kutatás, írás és előadás módszertana; teljesítendő min. 2k  min. 1 féle kötelezően választható tárgyelemmel",{"$nulls":8},2]
[null,null,"MAGM11 A tudományos kutatás, írás és előadás módszertana (nyelvészet); Szeminárium 2 óra, Gyakorlati jegy",{"$nulls":4},2,{"$nulls":5},"Forgács Tamás",null,"Magyar Nyelvészeti Tanszék"]
[null,null,"MAGM12 A tudományos kutatás, írás és előadás módszertana (irodalom); Szeminárium 2 óra, Gyakorlati jegy",{"$nulls":4},2,{"$nulls":5},"Füzi Izabella",null,"Vizuális Kultúra és Irodalomelmélet Tanszék"]
[null,"MAGSZD1 Szakdolgozati szeminárium magyar alapszakhoz; teljesítendő; teljesítendő min. 4k",{"$nulls":8},{"$f":"SUM(D100:J101)","v":4}]
[null,null,"MAGSZD11 Szakdolgozati szeminárium magyar alapszakhoz 1, Szeminárium őszi félévben, 2 óra, Gyakorlati jegy ++",{"$nulls":5},2,{"$nulls":6},"Magyar Nyelvi és Irodalmi Intézet"]
[null,null,"MAGSZD12 Szakdolgozati szeminárium magyar alapszakhoz 2, Szeminárium tavaszi félévben, 2 óra, Gyakorlati jegy ++",{"$nulls":6},2,{"$nulls":5},"Magyar Nyelvi és Irodalmi Intézet"]
["MK-SZV Választható irodalmi vagy nyelvészeti szemináriumok; Teljesítendő: min. 8k  legalább 1 választható tantárgy",{"$nulls":10},8]
[null,"MAGIT10 Szabadsávos irodalmi szemináriumok; teljesítendő min. 2k min. 1 féle kötelezően választható tárgyelemmel",{"$nulls":8},4]
[null,null,"MAGIT101 Irodalmi szeminárium (régi magyar irodalom), Szeminárium 2 óra, Gyakorlati jegy ++",2,{"$nulls":11},"Magyar Irodalmi Tanszék"]
[null,null,"MAGIT102 Irodalmi szeminárium (klasszikus magyar irodalom), Szeminárium 2 óra, Gyakorlati jegy ++",2,{"$nulls":11},"Magyar Irodalmi Tanszék"]
[null,null,"MAGIT103 Irodalmi szeminárium (összehasonlító irodalomtudomány), Szeminárium 2 óra, Gyakorlati jegy ++",2,{"$nulls":11},"Összehasonlító Irodalomtudományi Tanszék"]
[null,null,"MAGIT104 Irodalmi szeminárium (modern magyar irodalom), Szeminárium 2 óra, Gyakorlati jegy ++",2,{"$nulls":11},"Magyar Irodalmi Tanszék"]
[null,null,"MAGIT105 Irodalmi szeminárium (irodalomelmélet), Szeminárium 2 óra, Gyakorlati jegy ++",2,{"$nulls":11},"Vizuális Kultúra és Irodalomelmélet Tanszék"]
[null,"MAGNT17 Szabadsávos nyelvészeti szemináriumok; teljesítendő min. 2k min. 1 féle kötelezően választható tárgyelemmel",{"$nulls":8},4]
[null,null,"MAGNT171 Szabadsávos magyar nyelvészeti szemináriumok, Szeminárium 2 óra, Gyakorlati jegy ++",2,{"$nulls":11},"Magyar Nyelvészeti Tanszék"]
[null,null,"MAGNT172 Szabadsávos általános nyelvészeti szemináriumok, Szeminárium 2 óra, Gyakorlati jegy ++",2,{"$nulls":11},"Általános Nyelvészeti Tanszék"]
[null,null,"MAGNT173 Szabadsávos finnugor nyelvészeti szemináriumok, Szeminárium 2 óra, Gyakorlati jegy ++",2,{"$nulls":11},"Finnugor Nyelvtudományi Tanszék"]
["MKS-SZV Szabadon választható kurzusok; Teljesítendő: min. 10k",{"$nulls":10},{"$f":"SUM(K114:K118)","v":10}]
[null,"BAVÁL Választható bölcsészettudományi stúdium; teljesítendő min. 1 féle kötelezően választható tárgyelemmel",{"$nulls":8},10]
[null,null,"BAVÁL1 Választható bölcsészettudományi stúdium, Előadás őszi félévben, 2 óra, Kollokvium ++",2]
[null,null,"BAVÁL2 Minor képzés nyelvi előkészítése, Szeminárium őszi félévben, 6 óra, Gyakorlati jegy ++",6]
[null,"BSZ VAL BA/BSc Szabadon választható; teljesítendő 0k"]
[null,"BT ELOK BA/BSc Tanári előkészítő; teljesítendő 0k"]
["MKS-TAN Szabadon választható specializáció, minor képzés; Teljesítendő: min. 50k",{"$nulls":9},{"$f":"SUM(D120:J120)","v":50},{"$f":"SUM(K119)","v":50}]
[null,null,"(átlagolva)",null,null,null,13,13,12,12]
[{"$nulls":11},{"$f":"SUM(L3:L120)","v":180}]
[null,null,"félévhez kötött kredit összesen:",null,{"$f":"SUM(E5,E8,E10,E12,E14,E16,E18,E20,E22,E25,E26,E28,E30,E31,E33,E35,E37,E38,E40,E42,E43,E45,E47,E49,E51,E52,E54,E56,E58,E60,E62,E63,E64,E66,E67,E68,E69,E70,E72,E73,E74,E76,E77,E78,E79,E81,E83,E85,E86,E88,E89,E91,E92,E93,E94,E95,E97,E98,E101,E104,E105,E106,E107,E108,E110,E111,E112,E115,E116,E120)","v":22},{"$f":"SUM(F5,F8,F10,F12,F14,F16,F18,F20,F22,F25,F26,F28,F30,F31,F33,F35,F37,F38,F40,F42,F43,F45,F47,F49,F51,F52,F54,F56,F58,F60,F62,F63,F64,F66,F67,F68,F69,F70,F72,F73,F74,F76,F77,F78,F79,F81,F83,F85,F86,F88,F89,F91,F92,F93,F94,F95,F97,F98,F101,F104,F105,F106,F107,F108,F110,F111,F112,F115,F116,F120)","v":21},{"$f":"SUM(G5,G8,G10,G12,G14,G16,G18,G20,G22,G25,G26,G28,G30,G31,G33,G35,G37,G38,G40,G42,G43,G45,G47,G49,G51,G52,G54,G56,G58,G60,G62,G63,G64,G66,G67,G68,G69,G70,G72,G73,G74,G76,G77,G78,G79,G81,G83,G85,G86,G88,G89,G91,G92,G93,G94,G95,G97,G98,G101,G104,G105,G106,G107,G108,G110,G111,G112,G115,G116,G120)","v":23},{"$f":"SUM(H5,H8,H10,H12,H14,H16,H18,H20,H22,H25,H26,H28,H30,H31,H33,H35,H37,H38,H40,H42,H43,H45,H47,H49,H51,H52,H54,H56,H58,H60,H62,H63,H64,H66,H67,H68,H69,H70,H72,H73,H74,H76,H77,H78,H79,H81,H83,H85,H86,H88,H89,H91,H92,H93,H94,H95,H97,H101,H104,H105,H106,H107,H108,H110,H111,H112,H115,H116,H120)","v":31},{"$f":"SUM(I5,I8,I10,I12,I14,I16,I18,I20,I22,I25,I26,I28,I30,I31,I33,I35,I37,I38,I40,I42,I43,I45,I47,I49,I51,I52,I54,I56,I58,I60,I62,I63,I64,I66,I67,I68,I69,I70,I72,I73,I74,I76,I77,I78,I79,I81,I83,I85,I86,I88,I89,I91,I92,I93,I94,I95,I97,I98,I100,I101,I104,I105,I106,I107,I108,I110,I111,I112,I115,I116,I120)","v":27},{"$f":"SUM(J5,J8,J10,J12,J14,J16,J18,J20,J22,J25,J26,J28,J30,J31,J33,J35,J37,J38,J40,J42,J43,J45,J47,J49,J51,J52,J54,J56,J58,J60,J62,J63,J64,J66,J67,J68,J69,J70,J72,J73,J74,J76,J77,J78,J79,J81,J83,J85,J86,J88,J89,J91,J92,J93,J94,J95,J97,J98,J101,J104,J105,J106,J107,J108,J110,J111,J112,J115,J116,J120)","v":26}]
[null,null,"kötvál alapozó",6,4,2]
[null,null,"kötvál törzs",6,2,2,2]
[null,null,"szakdolg",0,{"$nulls":5},0]
[null,null,"szabvál",18,2,5,5,null,4,2]
[null,null,"minden kredit összesen:",null,{"$f":"SUM(E122:E126)","v":30},{"$f":"SUM(F122:F126)","v":30},30,31,31,28,{"$f":"SUM(E127:J127)","v":180}]

{"sheet":"x","index":1,"n_rows":8,"n_cols":4,"rows_kept":8,"cut":false,"hidden":true,"merged":[]}
["beosztás",null,null,"tanszék"]
["egyetemi adjunktus",null,null,"Általános Nyelvészeti Tanszék"]
["egyetemi docens",null,null,"Finnugor Nyelvtudományi Tanszék"]
["egyetemi tanár",null,null,"Magyar Irodalmi Tanszék"]
["egyetemi tanársegéd",null,null,"Magyar Nyelvészeti Tanszék"]
[null,null,null,"Magyar Nyelvi és Irodalmi Intézet"]
[null,null,null,"Összehasonlító Irodalomtudományi Tanszék"]
[null,null,null,"Vizuális Kultúra és Irodalomelmélet Tanszék"]